bitfinex/quotes_BTCUSD_20230907
["timestamp","ask_amount","ask_price","bid_price","bid_amount"]
[1694050337440,4.57677173,25758.0,25757.0,0.01878261]
[1694050337639,4.57647173,25758.0,25757.0,0.01878261]
[1694050337895,4.57653173,25758.0,25757.0,0.01878261]
[1694050338297,4.57647173,25758.0,25757.0,0.01878261]
[1694050338541,4.72101173,25758.0,25757.0,0.01878261]
[1694050338744,4.72089173,25758.0,25757.0,0.01878261]
[1694050339348,4.71909173,25758.0,25757.0,0.01878261]
[1694050339655,4.71645173,25758.0,25757.0,0.01878261]
[1694050339859,4.71633173,25758.0,25757.0,0.01878261]
[1694050340068,4.71453173,25758.0,25757.0,0.01878261]
[1694050340398,4.71441173,25758.0,25757.0,0.01878261]
[1694050340603,4.71453173,25758.0,25757.0,0.01878261]
[1694050340855,4.71477173,25758.0,25757.0,0.01878261]
[1694050341035,4.70925173,25758.0,25757.0,0.01878261]
[1694050341264,4.70937173,25758.0,25757.0,0.01878261]
[1694050341499,4.70889173,25758.0,25757.0,0.01878261]
[1694050341742,4.70913173,25758.0,25757.0,0.01878261]
[1694050341987,4.71729173,25758.0,25757.0,0.01878261]
[1694050342203,4.71465173,25758.0,25757.0,0.01878261]
[1694050342407,4.71945173,25758.0,25757.0,0.01878261]
[1694050342617,4.71777173,25758.0,25757.0,0.01878261]
[1694050342832,4.71573173,25758.0,25757.0,0.01878261]
[1694050343267,4.71609173,25758.0,25757.0,0.01878261]
[1694050343480,4.71861173,25758.0,25757.0,0.01878261]
[1694050343692,4.71825173,25758.0,25757.0,0.01878261]
[1694050343901,4.71717173,25758.0,25757.0,0.01878261]
[1694050344116,4.87593173,25758.0,25757.0,0.01878261]
[1694050344332,4.90929173,25758.0,25757.0,0.01878261]
[1694050344570,4.90641173,25758.0,25757.0,0.01878261]
[1694050344803,4.90485173,25758.0,25757.0,0.01878261]
[1694050345037,4.90521173,25758.0,25757.0,0.01878261]
[1694050345261,4.90485173,25758.0,25757.0,0.01878261]
[1694050345491,4.89981173,25758.0,25757.0,0.01878261]
[1694050345717,4.87609173,25758.0,25757.0,0.01878261]
[1694050345945,4.90245173,25758.0,25757.0,0.01878261]
[1694050346169,4.89993173,25758.0,25757.0,0.01878261]
[1694050346394,4.90125173,25758.0,25757.0,0.01878261]
[1694050346644,4.89333173,25758.0,25757.0,0.01878261]
[1694050346865,4.89225173,25758.0,25757.0,0.01878261]
[1694050347089,4.90149173,25758.0,25757.0,0.01878261]
[1694050347308,4.89405173,25758.0,25757.0,0.01878261]
[1694050347529,4.88013173,25758.0,25757.0,0.01878261]
[1694050347747,4.87893173,25758.0,25757.0,0.01878261]
[1694050347966,4.88121173,25758.0,25757.0,0.01878261]
[1694050348204,4.87425173,25758.0,25757.0,0.01878261]
[1694050348473,4.87161173,25758.0,25757.0,0.01878261]
[1694050348674,4.87209173,25758.0,25757.0,0.01878261]
[1694050348887,4.87233173,25758.0,25757.0,0.01878261]
[1694050349151,4.87149173,25758.0,25757.0,0.01878261]
[1694050349406,4.87113173,25758.0,25757.0,0.01878261]
[1694050349639,4.87053173,25758.0,25757.0,0.01878261]
[1694050349872,4.9308229,25758.0,25757.0,0.01878261]
[1694050350117,4.9310629,25758.0,25757.0,0.01878261]
[1694050350375,4.9309429,25758.0,25757.0,0.01878261]
[1694050350597,4.9305829,25758.0,25757.0,0.01878261]
[1694050350814,4.9304629,25758.0,25757.0,0.01878261]
[1694050351047,4.9302229,25758.0,25757.0,0.01878261]
[1694050351272,4.9301029,25758.0,25757.0,0.01878261]
[1694050351507,4.9299829,25758.0,25757.0,0.01878261]
[1694050351728,4.9297429,25758.0,25757.0,0.01878261]
[1694050351965,4.9295029,25758.0,25757.0,0.01878261]
[1694050352184,4.9293829,25758.0,25757.0,0.01878261]
[1694050352406,4.9292629,25758.0,25757.0,0.01878261]
[1694050352669,4.52725763,25758.0,25757.0,0.01878261]
[1694050352888,4.52485763,25758.0,25757.0,0.01878261]
[1694050353115,4.52941763,25758.0,25757.0,0.01878261]
[1694050353336,4.53277763,25758.0,25757.0,0.01878261]
[1694050353558,4.52509763,25758.0,25757.0,0.01878261]
[1694050353820,4.52461763,25758.0,25757.0,0.01878261]
[1694050354045,4.90383828,25758.0,25757.0,0.01878261]
[1694050354246,4.90923828,25758.0,25757.0,0.01878261]
[1694050354494,4.90011828,25758.0,25757.0,0.01878261]
[1694050354749,4.89999828,25758.0,25757.0,0.01878261]
[1694050354968,4.90239828,25758.0,25757.0,0.01878261]
[1694050355218,4.90323828,25758.0,25757.0,0.01878261]
[1694050355443,4.90071828,25758.0,25757.0,0.01878261]
[1694050355662,4.90107828,25758.0,25757.0,0.01878261]
[1694050356364,4.90143828,25758.0,25757.0,0.01878261]
[1694050356419,4.90095828,25758.0,25757.0,0.01878261]
[1694050356674,4.90167828,25758.0,25757.0,0.01878261]
[1694050356903,4.90155828,25758.0,25757.0,0.01878261]
[1694050357137,4.90071828,25758.0,25757.0,0.01878261]
[1694050357361,4.89963828,25758.0,25757.0,0.01878261]
[1694050357586,4.89063828,25758.0,25757.0,0.01878261]
[1694050357790,4.88979828,25758.0,25757.0,0.01878261]
[1694050357971,4.88955828,25758.0,25757.0,0.01878261]
[1694050358127,4.88895828,25758.0,25757.0,0.01878261]
[1694050358330,4.88931828,25758.0,25757.0,0.01878261]
[1694050358806,4.88895828,25758.0,25757.0,0.01878261]
[1694050359007,4.88919828,25758.0,25757.0,0.01878261]
[1694050359193,4.88991828,25758.0,25757.0,0.01878261]
[1694050359399,4.88919828,25758.0,25757.0,0.01878261]
[1694050359685,4.88955828,25758.0,25757.0,0.01878261]
[1694050359863,4.88991828,25758.0,25757.0,0.01878261]
[1694050360074,4.89087828,25758.0,25757.0,0.01878261]
[1694050360291,4.89111828,25758.0,25757.0,0.01878261]
[1694050360650,4.89147828,25758.0,25757.0,0.01878261]
[1694050360877,4.89627828,25758.0,25757.0,0.01878261]
[1694050361055,4.89663828,25758.0,25757.0,0.01878261]
[1694050361286,4.89807828,25758.0,25757.0,0.01878261]
[1694050361486,4.89879828,25758.0,25757.0,0.01878261]
[1694050361617,4.90167828,25758.0,25757.0,0.01878261]
[1694050362422,4.90191828,25758.0,25757.0,0.01878261]
[1694050362635,4.90179828,25758.0,25757.0,0.01878261]
[1694050362919,4.90167828,25758.0,25757.0,0.01878261]
[1694050363122,4.78107828,25758.0,25757.0,0.01878261]
[1694050363328,4.78155828,25758.0,25757.0,0.01878261]
[1694050363536,4.78191828,25758.0,25757.0,0.01878261]
[1694050363799,4.78167828,25758.0,25757.0,0.01878261]
[1694050364024,4.40545763,25758.0,25757.0,0.01878261]
[1694050364240,4.40413763,25758.0,25757.0,0.01878261]
[1694050364457,4.40221763,25758.0,25757.0,0.01878261]
[1694050364695,4.40497763,25758.0,25757.0,0.01878261]
[1694050364904,4.40293763,25758.0,25757.0,0.01878261]
[1694050365107,4.7892229,25758.0,25757.0,0.01878261]
[1694050365512,4.7870629,25758.0,25757.0,0.01878261]
[1694050365929,4.7863429,25758.0,25757.0,0.01878261]
[1694050366330,4.7855029,25758.0,25757.0,0.01878261]
[1694050366531,4.7852629,25758.0,25757.0,0.01878261]
[1694050366711,4.7855029,25758.0,25757.0,0.01878261]
[1694050367147,4.7853829,25758.0,25757.0,0.01878261]
[1694050367472,4.7845429,25758.0,25757.0,0.01878261]
[1694050367686,4.7855029,25758.0,25757.0,0.01878261]
[1694050368019,4.7873029,25758.0,25757.0,0.01878261]
[1694050368226,4.7879029,25758.0,25757.0,0.01878261]
[1694050368607,4.7877829,25758.0,25757.0,0.01878261]
[1694050368821,4.7923429,25758.0,25757.0,0.01878261]
[1694050369017,4.7924629,25758.0,25757.0,0.01878261]
[1694050369231,4.7858629,25758.0,25757.0,0.01878261]
[1694050369397,4.7887429,25758.0,25757.0,0.01878261]
[1694050369600,4.7885029,25758.0,25757.0,0.01878261]
[1694050369930,4.7881429,25758.0,25757.0,0.01878261]
[1694050370126,4.7882629,25758.0,25757.0,0.01878261]
[1694050370333,4.7823829,25758.0,25757.0,0.01878261]
[1694050370544,4.7796229,25758.0,25757.0,0.01878261]
[1694050370749,4.7805829,25758.0,25757.0,0.01878261]
[1694050370982,4.7729029,25758.0,25757.0,0.01878261]
[1694050371154,4.7720629,25758.0,25757.0,0.01878261]
[1694050371413,4.6374829,25758.0,25757.0,0.01878261]
[1694050371622,4.64598458,25758.0,25757.0,0.01878261]
[1694050371822,4.25789931,25758.0,25757.0,0.01878261]
[1694050372130,4.25783931,25758.0,25757.0,0.01878261]
[1694050372335,4.24099763,25758.0,25757.0,0.01878261]
[1694050372537,4.24111763,25758.0,25757.0,0.01878261]
[1694050372724,4.24129763,25758.0,25757.0,0.01878261]
[1694050372922,4.24195763,25758.0,25757.0,0.01878261]
[1694050373125,4.24255763,25758.0,25757.0,0.01878261]
[1694050373334,4.24225763,25758.0,25757.0,0.01878261]
[1694050373535,4.24237763,25758.0,25757.0,0.01878261]
[1694050373859,4.24249763,25758.0,25757.0,0.01878261]
[1694050374013,4.24333763,25758.0,25757.0,0.01878261]
[1694050374213,4.24297763,25758.0,25757.0,0.01878261]
[1694050374375,4.24303763,25758.0,25757.0,0.01878261]
[1694050374581,4.24357763,25758.0,25757.0,0.01878261]
[1694050374780,4.24369763,25758.0,25757.0,0.01878261]
[1694050375053,4.24381763,25758.0,25757.0,0.01878261]
[1694050375274,4.23856128,25758.0,25757.0,0.01878261]
[1694050375480,4.18954128,25758.0,25757.0,0.01878261]
[1694050375698,4.19380128,25758.0,25757.0,0.01878261]
[1694050375922,4.11508128,25758.0,25757.0,0.01878261]
[1694050376557,4.19578128,25758.0,25757.0,0.01878261]
[1694050376762,4.19356128,25758.0,25757.0,0.01878261]
[1694050376963,4.13808128,25758.0,25757.0,0.01878261]
[1694050377496,4.21860128,25758.0,25757.0,0.01878261]
[1694050377701,4.21872128,25758.0,25757.0,0.01878261]
[1694050377952,4.13808128,25758.0,25757.0,0.01878261]
[1694050378802,4.22820128,25758.0,25757.0,0.01878261]
[1694050379035,4.55012108,25758.0,25757.0,0.01878261]
[1694050379224,4.13808128,25758.0,25757.0,0.01878261]
[1694050379683,4.22064128,25758.0,25757.0,0.01878261]
[1694050379861,4.22058128,25758.0,25757.0,0.01878261]
[1694050380068,4.22964128,25758.0,25757.0,0.01878261]
[1694050380220,4.22940128,25758.0,25757.0,0.01878261]
[1694050380422,4.23516128,25758.0,25757.0,0.01878261]
[1694050380648,4.23660128,25758.0,25757.0,0.01878261]
[1694050380846,4.23864128,25758.0,25757.0,0.01878261]
[1694050381111,4.6106029,25758.0,25757.0,0.01878261]
[1694050381317,4.6115029,25758.0,25757.0,0.01878261]
[1694050381551,4.6307346,25758.0,25757.0,0.01878261]
[1694050381729,4.6312746,25758.0,25757.0,0.01878261]
[1694050381880,4.57062343,25758.0,25757.0,0.01878261]
[1694050382084,4.57104343,25758.0,25757.0,0.01878261]
[1694050382290,4.57128343,25758.0,25757.0,0.01878261]
[1694050382519,4.57158343,25758.0,25757.0,0.01878261]
[1694050382714,4.57176343,25758.0,25757.0,0.01878261]
[1694050382923,4.57002343,25758.0,25757.0,0.01878261]
[1694050383124,4.57014343,25758.0,25757.0,0.01878261]
[1694050383394,4.57026343,25758.0,25757.0,0.01878261]
[1694050383621,4.57182343,25758.0,25757.0,0.01878261]
[1694050383811,4.57200343,25758.0,25757.0,0.01878261]
[1694050383933,4.57212343,25758.0,25757.0,0.01878261]
[1694050384136,4.57152343,25758.0,25757.0,0.01878261]
[1694050384370,4.57092343,25758.0,25757.0,0.01878261]
[1694050384586,4.57110343,25758.0,25757.0,0.01878261]
[1694050384798,4.57080343,25758.0,25757.0,0.01878261]
[1694050384999,4.63067136,25758.0,25757.0,0.01878261]
[1694050385206,4.62911136,25758.0,25757.0,0.01878261]
[1694050385433,4.62779136,25758.0,25757.0,0.01878261]
[1694050385686,4.62815136,25758.0,25757.0,0.01878261]
[1694050385893,4.62821136,25758.0,25757.0,0.01878261]
[1694050386100,4.62785136,25758.0,25757.0,0.01878261]
[1694050386345,4.62839136,25758.0,25757.0,0.01878261]
[1694050386628,4.62827136,25758.0,25757.0,0.01878261]
[1694050386872,4.62983136,25758.0,25757.0,0.01878261]
[1694050387075,4.62953136,25758.0,25757.0,0.01878261]
[1694050387282,4.62815136,25758.0,25757.0,0.01878261]
[1694050387483,4.62569136,25758.0,25757.0,0.01878261]
[1694050387699,4.62515136,25758.0,25757.0,0.01878261]
[1694050387928,4.62293136,25758.0,25757.0,0.01878261]
[1694050388155,4.62119136,25758.0,25757.0,0.01878261]
[1694050388363,4.61837136,25758.0,25757.0,0.01878261]
[1694050388583,4.61801136,25758.0,25757.0,0.01878261]
[1694050388792,4.61807136,25758.0,25757.0,0.01878261]
[1694050389040,4.61537136,25758.0,25757.0,0.01878261]
[1694050389263,4.61579136,25758.0,25757.0,0.01878261]
[1694050389468,4.61615136,25758.0,25757.0,0.01878261]
[1694050389683,4.61621136,25758.0,25757.0,0.01878261]
[1694050389885,4.61645136,25758.0,25757.0,0.01878261]
[1694050390211,4.61669136,25758.0,25757.0,0.01878261]
[1694050390438,4.23040609,25758.0,25757.0,0.01878261]
[1694050390646,4.22830609,25758.0,25757.0,0.01878261]
[1694050390845,4.22818609,25758.0,25757.0,0.01878261]
[1694050391089,4.22824609,25758.0,25757.0,0.01878261]
[1694050391296,4.22836609,25758.0,25757.0,0.01878261]
[1694050391496,4.22824609,25758.0,25757.0,0.01878261]
[1694050391707,4.22962609,25758.0,25757.0,0.01878261]
[1694050392031,4.22974609,25758.0,25757.0,0.01878261]
[1694050392263,4.22932609,25758.0,25757.0,0.01878261]
[1694050392501,4.54499384,25758.0,25757.0,0.01878261]
[1694050392734,4.54456879,25758.0,25757.0,0.01878261]
[1694050392927,4.54420879,25758.0,25757.0,0.01878261]
[1694050393158,4.54516879,25758.0,25757.0,0.01878261]
[1694050393372,4.54564879,25758.0,25757.0,0.01878261]
[1694050393596,4.54570879,25758.0,25757.0,0.01878261]
[1694050393817,4.54546879,25758.0,25757.0,0.01878261]
[1694050394047,4.54540879,25758.0,25757.0,0.01878261]
[1694050394483,4.54204879,25758.0,25757.0,0.01878261]
[1694050394485,4.54150879,25758.0,25757.0,0.01878261]
[1694050394596,4.54240879,25758.0,25757.0,0.01878261]
[1694050394825,4.54198879,25758.0,25757.0,0.01878261]
[1694050395057,4.54054879,25758.0,25757.0,0.01878261]
[1694050395295,4.64346622,25758.0,25757.0,0.01878261]
[1694050395521,4.64472622,25758.0,25757.0,0.01878261]
[1694050395781,4.64466622,25758.0,25757.0,0.01878261]
[1694050396002,4.64472622,25758.0,25757.0,0.01878261]
[1694050396246,4.64442622,25758.0,25757.0,0.01878261]
[1694050396489,4.64562622,25758.0,25757.0,0.01878261]
[1694050396718,4.64664622,25758.0,25757.0,0.01878261]
[1694050396934,4.54732879,25758.0,25757.0,0.01878261]
[1694050397140,4.54366879,25758.0,25757.0,0.01878261]
[1694050397356,4.54018879,25758.0,25757.0,0.01878261]
[1694050397564,4.54120879,25758.0,25757.0,0.01878261]
[1694050397818,4.54126879,25758.0,25757.0,0.01878261]
[1694050397994,4.54156879,25758.0,25757.0,0.01878261]
[1694050398211,4.54126879,25758.0,25757.0,0.01878261]
[1694050398615,4.54402879,25758.0,25757.0,0.01878261]
[1694050398839,4.54288879,25758.0,25757.0,0.01878261]
[1694050399042,4.54282879,25758.0,25757.0,0.01878261]
[1694050399236,4.54288879,25758.0,25757.0,0.01878261]
[1694050399450,4.54276879,25758.0,25757.0,0.01878261]
[1694050399642,4.54288879,25758.0,25757.0,0.01878261]
[1694050399814,4.54120879,25758.0,25757.0,0.01878261]
[1694050400165,4.54270879,25758.0,25757.0,0.01878261]
[1694050400369,4.54276879,25758.0,25757.0,0.01878261]
[1694050400624,4.54366879,25758.0,25757.0,0.01878261]
[1694050400811,4.54420879,25758.0,25757.0,0.01878261]
[1694050401034,4.54576879,25758.0,25757.0,0.01878261]
[1694050401362,4.54666879,25758.0,25757.0,0.01878261]
[1694050401560,4.54792879,25758.0,25757.0,0.01878261]
[1694050401763,4.54696879,25758.0,25757.0,0.01878261]
[1694050402025,4.55638879,25758.0,25757.0,0.01878261]
[1694050402231,4.55608879,25758.0,25757.0,0.01878261]
[1694050402433,4.55536879,25758.0,25757.0,0.01878261]
[1694050402811,4.55464879,25758.0,25757.0,0.01878261]
[1694050403009,4.55476879,25758.0,25757.0,0.01878261]
[1694050403216,4.55536879,25758.0,25757.0,0.01878261]
[1694050403417,4.55716879,25758.0,25757.0,0.01878261]
[1694050403631,4.94387406,25758.0,25757.0,0.01878261]
[1694050403837,4.55572879,25758.0,25757.0,0.01878261]
[1694050404040,4.55680879,25758.0,25757.0,0.01878261]
[1694050404267,4.55602879,25758.0,25757.0,0.01878261]
[1694050404544,4.55824879,25758.0,25757.0,0.01878261]
[1694050404763,4.55860879,25758.0,25757.0,0.01878261]
[1694050405170,4.56028879,25758.0,25757.0,0.01878261]
[1694050405592,4.56046879,25758.0,25757.0,0.01878261]
[1694050405817,4.94795406,25758.0,25757.0,0.01878261]
[1694050406046,4.94705406,25758.0,25757.0,0.01878261]
[1694050406199,4.56088879,25758.0,25757.0,0.01878261]
[1694050406462,4.56094879,25758.0,25757.0,0.01878261]
[1694050406784,4.56064879,25758.0,25757.0,0.01878261]
[1694050407226,4.56106879,25758.0,25757.0,0.01878261]
[1694050407433,4.56058879,25758.0,25757.0,0.01878261]
[1694050407642,4.56016879,25758.0,25757.0,0.01878261]
[1694050407851,4.94609406,25758.0,25757.0,0.01878261]
[1694050408055,4.94855406,25758.0,25757.0,0.01878261]
[1694050408262,4.94819406,25758.0,25757.0,0.01878261]
[1694050408667,4.94921406,25758.0,25757.0,0.01878261]
[1694050408869,4.94885406,25758.0,25757.0,0.01878261]
[1694050409135,4.64033136,25758.0,25757.0,0.01878261]
[1694050409331,4.64297136,25758.0,25757.0,0.01878261]
[1694050409606,4.64255136,25758.0,25757.0,0.01878261]
[1694050409760,4.64243136,25758.0,25757.0,0.01878261]
[1694050410437,4.64309136,25758.0,25757.0,0.01878261]
[1694050410645,5.40175666,25758.0,25757.0,0.01878261]
[1694050410847,5.57083666,25758.0,25757.0,0.01878261]
[1694050411053,5.57131666,25758.0,25757.0,0.01878261]
[1694050411276,5.57107666,25758.0,25757.0,0.01878261]
[1694050411500,5.57803666,25758.0,25757.0,0.01878261]
[1694050411715,5.56819666,25758.0,25757.0,0.01878261]
[1694050411931,5.56795666,25758.0,25757.0,0.01878261]
[1694050412139,5.56783666,25758.0,25757.0,0.01878261]
[1694050412354,5.56603666,25758.0,25757.0,0.01878261]
[1694050412562,5.56915666,25758.0,25757.0,0.01878261]
[1694050412767,5.57275666,25758.0,25757.0,0.01878261]
[1694050412940,5.57239666,25758.0,25757.0,0.01878261]
[1694050413148,5.57275666,25758.0,25757.0,0.01878261]
[1694050413426,5.57383666,25758.0,25757.0,0.01878261]
[1694050413559,4.80379298,25758.0,25757.0,0.01878261]
[1694050413925,4.80139298,25758.0,25757.0,0.01878261]
[1694050414137,4.82249622,25758.0,25757.0,0.01878261]
[1694050414340,4.8229604,25758.0,25757.0,0.01878261]
[1694050414556,4.80425716,25758.0,25757.0,0.01878261]
[1694050414760,4.80305716,25758.0,25757.0,0.01878261]
[1694050414939,4.80281716,25758.0,25757.0,0.01878261]
[1694050415178,4.82111467,25758.0,25757.0,0.01878261]
[1694050415323,4.82087467,25758.0,25757.0,0.01878261]
[1694050415542,4.82135467,25758.0,25757.0,0.01878261]
[1694050415782,2.11878373,25758.0,25757.0,0.11878261]
[1694050415987,1.80904469,25758.0,25757.0,0.11878261]
[1694050416178,1.74352469,25758.0,25757.0,0.11878261]
[1694050416400,2.1234158,25758.0,25757.0,0.11878261]
[1694050416607,1.81078469,25758.0,25757.0,0.19908494]
[1694050416814,1.78726469,25758.0,25757.0,0.19908494]
[1694050417074,3.27895807,25758.0,25757.0,0.11878261]
[1694050417281,3.33123807,25758.0,25757.0,0.11878261]
[1694050417491,3.30639807,25758.0,25757.0,0.11762386]
[1694050417711,3.30627807,25758.0,25757.0,0.11762386]
[1694050417925,3.30615807,25758.0,25757.0,0.11762386]
[1694050418135,3.33009807,25758.0,25757.0,0.11762386]
[1694050418348,3.32955807,25758.0,25757.0,0.11762386]
[1694050418555,3.33159807,25758.0,25757.0,0.11762386]
[1694050418760,3.65907585,25758.0,25757.0,0.11762386]
[1694050418970,3.65781585,25758.0,25757.0,0.11762386]
[1694050419185,3.65799585,25758.0,25757.0,0.11762386]
[1694050419394,3.66765585,25758.0,25757.0,0.11762386]
[1694050419627,3.66729585,25758.0,25757.0,0.11762386]
[1694050419842,3.66723585,25758.0,25757.0,0.11762386]
[1694050420057,3.67377585,25758.0,25757.0,0.11762386]
[1694050420275,3.66675585,25758.0,25757.0,0.11762386]
[1694050420477,3.35226474,25758.0,25757.0,0.11762386]
[1694050420690,3.66621585,25758.0,25757.0,0.11762386]
[1694050420955,3.66495585,25758.0,25757.0,0.11762386]
[1694050421165,3.66507585,25758.0,25757.0,0.11762386]
[1694050421371,3.66465585,25758.0,25757.0,0.11762386]
[1694050421603,3.66441585,25758.0,25757.0,0.11762386]
[1694050421799,3.66303585,25758.0,25757.0,0.11762386]
[1694050422300,3.65979585,25758.0,25757.0,0.11762386]
[1694050422475,3.66081585,25758.0,25757.0,0.11762386]
[1694050422646,3.66063585,25758.0,25757.0,0.11762386]
[1694050422844,3.66027585,25758.0,25757.0,0.11762386]
[1694050423207,3.65985585,25758.0,25757.0,0.11762386]
[1694050423413,3.65919585,25758.0,25757.0,0.11762386]
[1694050423607,3.65979585,25758.0,25757.0,0.11762386]
[1694050423814,3.66009585,25758.0,25757.0,0.11762386]
[1694050424026,3.66039585,25758.0,25757.0,0.11762386]
[1694050424234,3.66021585,25758.0,25757.0,0.11762386]
[1694050424571,3.66057585,25758.0,25757.0,0.11762386]
[1694050424818,3.66045585,25758.0,25757.0,0.11762386]
[1694050425024,3.66009585,25758.0,25757.0,0.11762386]
[1694050425236,3.65991585,25758.0,25757.0,0.11762386]
[1694050425580,3.65967585,25758.0,25757.0,0.11762386]
[1694050425787,3.65937585,25758.0,25757.0,0.11762386]
[1694050426001,3.66045585,25758.0,25757.0,0.09762386]
[1694050426414,3.65913585,25758.0,25757.0,0.09762386]
[1694050426617,3.65907585,25758.0,25757.0,0.09762386]
[1694050426827,3.65871585,25758.0,25757.0,0.09762386]
[1694050427197,3.65859585,25758.0,25757.0,0.09762386]
[1694050427420,3.65865585,25758.0,25757.0,0.09762386]
[1694050427661,2.0578958,25758.0,25757.0,0.01762386]
[1694050427919,0.07001069,25758.0,25757.0,1.69059786]
[1694050428150,0.07001069,25758.0,25757.0,0.37581258]
[1694050428627,0.04601069,25758.0,25757.0,0.37581258]
[1694050428850,0.07001069,25758.0,25757.0,0.37581258]
[1694050429282,0.30281344,25758.0,25757.0,1.15229958]
[1694050429512,0.30276386,25758.0,25757.0,1.15229958]
[1694050430006,0.25476386,25758.0,25757.0,1.15229958]
[1694050430283,0.27876386,25758.0,25757.0,1.15229958]
[1694050430539,0.30276386,25758.0,25757.0,0.37581258]
[1694050430803,0.27876386,25758.0,25757.0,0.37581258]
[1694050431103,0.30276386,25758.0,25757.0,0.37581258]
[1694050433635,0.48886726,25758.0,25757.0,0.37581258]
[1694050434652,0.60946726,25758.0,25757.0,0.37581258]
[1694050436658,0.37671409,25758.0,25757.0,0.37581258]
[1694050438417,3.23888479,25758.0,25757.0,0.01762386]
[1694050438666,3.23384479,25758.0,25757.0,0.01762386]
[1694050438923,3.23360479,25758.0,25757.0,0.01762386]
[1694050439129,3.23312479,25758.0,25757.0,0.01762386]
[1694050439340,3.23204479,25758.0,25757.0,0.01762386]
[1694050439562,3.23156479,25758.0,25757.0,0.01762386]
[1694050439772,3.23132479,25758.0,25757.0,0.01762386]
[1694050440233,3.23096479,25758.0,25757.0,0.01762386]
[1694050440441,3.22982479,25758.0,25757.0,0.01762386]
[1694050440671,3.16298479,25758.0,25757.0,0.01762386]
[1694050450294,4.35547697,25758.0,25757.0,0.01762386]
[1694050450507,4.55744219,25758.0,25757.0,0.01762386]
[1694050450713,4.8636533,25758.0,25757.0,0.01762386]
[1694050450933,4.8644933,25758.0,25757.0,0.01762386]
[1694050451140,4.8686933,25758.0,25757.0,0.01762386]
[1694050451344,5.0010133,25758.0,25757.0,0.01762386]
[1694050451608,0.06,25756.0,25755.0,0.019998]
[1694050451837,4.51742867,25756.0,25755.0,0.019998]
[1694050452071,5.1600025,25756.0,25755.0,0.019998]
[1694050452286,4.84589637,25756.0,25755.0,0.019998]
[1694050452506,5.62205437,25756.0,25755.0,0.019998]
[1694050452733,5.61401437,25756.0,25755.0,0.019998]
[1694050452958,5.62361437,25756.0,25755.0,0.019998]
[1694050453198,5.61701437,25756.0,25755.0,0.019998]
[1694050453434,5.61545437,25756.0,25755.0,0.019998]
[1694050453664,5.61785437,25756.0,25755.0,0.019998]
[1694050453886,5.64137437,25756.0,25755.0,0.019998]
[1694050454100,5.63837437,25756.0,25755.0,0.019998]
[1694050454331,5.63825437,25756.0,25755.0,0.019998]
[1694050454583,5.63801437,25756.0,25755.0,0.019998]
[1694050454853,5.63777437,25756.0,25755.0,0.019998]
[1694050455104,5.63885437,25756.0,25755.0,0.019998]
[1694050455430,5.63861437,25756.0,25755.0,0.019998]
[1694050455626,5.63633437,25756.0,25755.0,0.019998]
[1694050455891,5.63736589,25756.0,25755.0,0.019998]
[1694050456133,5.50032589,25756.0,25755.0,0.019998]
[1694050456379,4.49274016,25756.0,25755.0,0.019998]
[1694050456601,4.45248016,25756.0,25755.0,0.019998]
[1694050456819,4.45620016,25756.0,25755.0,0.019998]
[1694050457048,4.45578016,25756.0,25755.0,0.019998]
[1694050457273,4.45638016,25756.0,25755.0,0.019998]
[1694050457484,4.45812016,25756.0,25755.0,0.019998]
[1694050457710,4.47330016,25756.0,25755.0,0.019998]
[1694050457944,4.86336543,25756.0,25755.0,0.019998]
[1694050458171,4.87296543,25756.0,25755.0,0.019998]
[1694050458393,4.87368543,25756.0,25755.0,0.019998]
[1694050458603,4.87386543,25756.0,25755.0,0.019998]
[1694050458804,4.87356543,25756.0,25755.0,0.019998]
[1694050459082,4.87368543,25756.0,25755.0,0.019998]
[1694050459296,4.87374543,25756.0,25755.0,0.019998]
[1694050459495,4.87326543,25756.0,25755.0,0.019998]
[1694050459703,4.87296543,25756.0,25755.0,0.019998]
[1694050459945,4.87302543,25756.0,25755.0,0.019998]
[1694050460153,4.87320543,25756.0,25755.0,0.019998]
[1694050460368,4.87374543,25756.0,25755.0,0.019998]
[1694050460579,4.87392543,25756.0,25755.0,0.019998]
[1694050460784,4.87398543,25756.0,25755.0,0.019998]
[1694050461408,4.87404543,25756.0,25755.0,0.019998]
[1694050461646,0.06,25755.0,25754.0,0.019998]
[1694050461881,3.21988927,25755.0,25754.0,0.019998]
[1694050462115,3.71021454,25755.0,25754.0,0.019998]
[1694050462352,3.72998741,25755.0,25754.0,0.019998]
[1694050462595,4.00748495,25755.0,25754.0,0.019998]
[1694050462782,4.00922495,25755.0,25754.0,0.019998]
[1694050463009,3.78002741,25755.0,25754.0,0.019998]
[1694050463208,3.78428741,25755.0,25754.0,0.019998]
[1694050463401,4.06460495,25755.0,25754.0,0.019998]
[1694050463606,3.78632741,25755.0,25754.0,0.019998]
[1694050463805,3.78638741,25755.0,25754.0,0.019998]
[1694050464005,3.80393144,25755.0,25754.0,0.019998]
[1694050464243,3.80399144,25755.0,25754.0,0.019998]
[1694050464439,3.80369144,25755.0,25754.0,0.019998]
[1694050464684,3.80291144,25755.0,25754.0,0.019998]
[1694050464846,3.80309144,25755.0,25754.0,0.019998]
[1694050465061,3.80351144,25755.0,25754.0,0.019998]
[1694050465259,3.80357144,25755.0,25754.0,0.019998]
[1694050465634,3.80375144,25755.0,25754.0,0.019998]
[1694050465866,3.80381144,25755.0,25754.0,0.019998]
[1694050466093,3.80387144,25755.0,25754.0,0.019998]
[1694050466324,3.80399144,25755.0,25754.0,0.019998]
[1694050466553,3.80429144,25755.0,25754.0,0.019998]
[1694050466928,3.80435144,25755.0,25754.0,0.019998]
[1694050466930,3.80453144,25755.0,25754.0,0.019998]
[1694050467161,3.80459144,25755.0,25754.0,0.019998]
[1694050467505,3.80471144,25755.0,25754.0,0.019998]
[1694050467678,3.80249144,25755.0,25754.0,0.019998]
[1694050467884,3.80255144,25755.0,25754.0,0.019998]
[1694050468129,3.80261144,25755.0,25754.0,0.019998]
[1694050468361,3.80111144,25755.0,25754.0,0.019998]
[1694050468591,3.80081144,25755.0,25754.0,0.019998]
[1694050469134,3.80111144,25755.0,25754.0,0.019998]
[1694050469355,3.79877144,25755.0,25754.0,0.019998]
[1694050469586,3.41086617,25755.0,25754.0,0.019998]
[1694050469862,3.40504617,25755.0,25754.0,0.019998]
[1694050470084,3.40516617,25755.0,25754.0,0.019998]
[1694050470322,3.63575752,25755.0,25754.0,0.019998]
[1694050470549,3.63593752,25755.0,25754.0,0.019998]
[1694050470833,3.63647752,25755.0,25754.0,0.019998]
[1694050471070,3.63857752,25755.0,25754.0,0.019998]
[1694050471293,3.63881752,25755.0,25754.0,0.019998]
[1694050471526,3.63953752,25755.0,25754.0,0.019998]
[1694050471734,3.63965752,25755.0,25754.0,0.019998]
[1694050471980,3.64787752,25755.0,25754.0,0.019998]
[1694050472173,3.64793752,25755.0,25754.0,0.019998]
[1694050472401,3.64757752,25755.0,25754.0,0.019998]
[1694050472669,3.64847752,25755.0,25754.0,0.019998]
[1694050472906,3.64853752,25755.0,25754.0,0.019998]